Cogmind - Beta 10.1 @@@ ROGUE MODE // 2021.05.14 @ 15:50:46 Player: Farfid Result: Core destroyed Performance ------------- Evolutions (0) 0 Regions Visited (1) 200 Robots Destroyed (5) 25 Value Destroyed (180) 180 Prototype IDs (0) 0 Alien Tech Used (0) 0 Bonus (0) 0 TOTAL SCORE: 405 Bonus ------- None Cogmind --------- Core Integrity 0/250 Matter 300/300 Energy 100/100 System Corruption 7% Temperature Cool (0) Movement Core (50) Location -10/Materials Parts ------- > --- POWER (1) -------- (None) > --- PROPULSION (2) --- (None) > --- UTILITY (2) ------ (None) > --- WEAPON (2) ------- (None) > --- INVENTORY (4) ---- Wheel High-powered Tractor Beam High-powered Tractor Beam Light EM Pulse Cannon Peak State ------------ > --- POWER ------------ Light Ion Engine > --- PROPULSION ------- Wheel Compact Wheel > --- UTILITY ---------- Small Storage Unit Structural Scanner > --- WEAPON ----------- Assault Rifle Light Assault Rifle > --- INVENTORY -------- Wheel [Rating: 7] Favorites ----------- Power Light Ion Engine Engine Light Ion Engine Propulsion Compact Wheel Leg Aluminum Leg Wheel Compact Wheel Utility Medium Storage Unit Device Structural Scanner Storage Medium Storage Unit Weapon Assault Rifle Energy Cannon Light EM Pulse Cannon Ballistic Gun Assault Rifle Build | -11 -10 ------- Run | Scr Mat Slots Evolved . | . . Power . | . . Propulsion . | . . Utility . | . . Weapon . | . . Parts Attached 12 | 5 7 Power 1 | . 1 Engine 1 | . 1 Core . | . . Reactor . | . . Propulsion 5 | 2 3 Treads . | . . Leg 3 | . 3 Wheel 2 | 2 . Hover . | . . Flight . | . . Utility 3 | 1 2 Device 1 | . 1 Storage 2 | 1 1 Processor . | . . Hackware . | . . Protection . | . . Artifact . | . . Weapon 3 | 2 1 Energy Gun . | . . Energy Cannon 1 | . 1 Ballistic Gun 2 | 2 . Ballistic Cannon . | . . Launcher . | . . Special Weapon . | . . Impact Weapon . | . . Slashing Weapon . | . . Piercing Weapon . | . . Special Melee Weapon . | . . Unidentified Prototypes . | . . Parts Lost 9 | . 9 Power 1 | . 1 Propulsion 4 | . 4 Utility 1 | . 1 Weapon 3 | . 3 Highest Loss Streak 6 | . 6 Average Slot Usage (%) 66 | . 66 Engine 5 | . 5 Leg 7 | . 7 Wheel 15 | . 15 Device 5 | . 5 Storage 13 | . 13 Energy Cannon 1 | . 1 Ballistic Gun 17 | . 17 Naked Turns 10 | . 10 Heaviest Build 15 | 7 15 Greatest Support 26 | 26 26 Greatest Overweight (x) 2 | . 2 Average Overweight (x) . | . . Largest Inventory Capacity 8 | 6 8 Average Capacity 7 | 5 7 Most Carried 6 | . 6 Average Carried 2 | . 3 Final Capacity 6 | 6 4 Final Carried 4 | . 4 Class Distribution -------------------- 100% | Mutant Dominant Class ---------------- Mutant | -10/Materials Resources | -11 -10 ----------- Run | Scr Mat Matter Collected 341 | 179 162 Remotely . | . . Salvage Created 217 | . 217 Parts 9 | . 9 Haulers Intercepted . | . . Recyclers Shooed . | . . Parts Field Recycled . | . . Retrieved Matter . | . . Parts Self-Destructed . | . . Prevented . | . . Kills | -11 -10 ------- Run | Scr Mat Combat Hostiles Destroyed 5 | . 5 Melee 2 | . 2 Guns 3 | . 3 Classes Destroyed 1 | . 1 Grunt 5 | . 5 Best Kill Streak 2 | . 2 Combat Bots Only 2 | . 2 Max Kills in Single Turn 1 | . 1 Gunslinging . | . . Exploded . | . . Melee 1 | . 1 Uniques/NPCs Destroyed . | . . Combat | -11 -10 -------- Run | Scr Mat Damage Taken 890 | . 890 Core 255 | . 255 Absorbed by Shields . | . . Core Remaining (%) 100 | 100 . Volleys Fired 31 | . 31 Largest 2 | . 2 Hottest 56 | . 56 Shots Fired 48 | . 48 Gun 44 | . 44 Cannon 4 | . 4 Launcher . | . . Special . | . . Kinetic 44 | . 44 Thermal . | . . Explosive . | . . Electromagnetic 4 | . 4 Robot Hit Streak 10 | . 10 Robot Miss Streak 2 | . 2 Penetration Max . | . . Secondary Targets 2 | . 2 Max Gunslinging Chain 1 | . 1 Shots Hit Robots 38 | . 38 Core Hits 21 | . 21 Critical Hits 1 | . 1 Critical Kills 1 | . 1 Critical Parts Destroyed . | . . Melee Attacks . | . . Impact . | . . Slashing . | . . Piercing . | . . Sneak Attacks . | . . Combat Hostiles . | . . Follow-up Attacks . | . . Damage Inflicted 509 | . 509 Guns 367 | . 367 Cannons 96 | . 96 Explosions . | . . Melee . | . . Ramming 46 | . 46 Kinetic 367 | . 367 Thermal . | . . Explosive . | . . Electromagnetic 96 | . 96 Impact . | . . Slashing . | . . Piercing . | . . Highest Corruption 7 | . 7 Average Corruption 7 | . 7 Corruption Purged . | . . Overload Shots . | . . Overflow Damage . | . . Projectiles . | . . Explosions . | . . Melee . | . . Knockbacks . | . . Impact . | . . Kinetic . | . . Secondary . | . . Self-Inflicted Damage 19 | . 19 Shots . | . . Rammed 16 | . 16 Targets Rammed 19 | . 19 Kicked 3 | . 3 Crushed . | . . Highest Temperature 36 | . 36 Average Temperature 11 | . 11 Received Heat Transfer 495 | . 495 Siege Activations . | . . Robots Corrupted . | . . Combat Hostiles . | . . Parts Fried 1 | . 1 Impact Corruptions . | . . Robots Melted . | . . Combat Hostiles . | . . Parts Melted . | . . Heat Transferred . | . . Parts Sabotaged . | . . Parts Stolen . | . . Parts Stripped . | . . Power Chain Reactions . | . . Missiles Intercepted . | . . Alert | -11 -10 ------- Run | Scr Mat Peak Influence 152 | . 152 Initial . | . . Average 70 | . 80 Maximum Alert Level . | . . Low Security (%) 100 | 100 100 Level 1 . | . . Level 2 . | . . Level 3 . | . . Level 4 . | . . Level 5 . | . . High Security . | . . Max Security . | . . Squads Dispatched 1 | . 1 Investigation 1 | . 1 Extermination . | . . Reinforcement . | . . Assault . | . . Garrison . | . . Intercept . | . . Construction Impeded . | . . Haulers Reinforced . | . . Stealth | -11 -10 --------- Run | Scr Mat Distress Signals 2 | . 2 Communications Jammed . | . . Distress Signals . | . . Times Spotted 12 | . 12 Peak Tracking Total 6 | . 6 Tactical Retreats 2 | . 2 Traps | -11 -10 ------- Run | Scr Mat Traps Triggered . | . . Indirectly . | . . Trap Hack Attempts . | . . Triggered . | . . Disarmed . | . . Reprogrammed . | . . Reused . | . . Traps Extracted . | . . Installed . | . . Triggered . | . . Machines | -11 -10 ---------- Run | Scr Mat Machines Disabled 1 | . 1 Max in Single Turn 1 | . 1 Machines Sabotaged . | . . Garrisons Compromised . | . . Overloaded Fab Kills . | . . Fab Network Shutdowns . | . . Hacking | -11 -10 --------- Run | Scr Mat Machines Accessed 2 | . 2 Terminals 1 | . 1 Fabricators . | . . Repair Stations . | . . Recycling Units 1 | . 1 Scanalyzers . | . . Garrison Access . | . . Total Hacks 3 | . 3 Successful 2 | . 2 Failed 1 | . 1 Catastrophic 1 | . 1 Database Lockouts . | . . Manual 1 | . 1 Terminals 2 | . 2 Fabricators . | . . Repair Stations . | . . Recycling Units 1 | . 1 Scanalyzers . | . . Garrison Access . | . . Terminal Hacks 1 | . 1 Branch Access Points 1 | . 1 Fabricator Hacks . | . . Repair Station Hacks . | . . Recycling Unit Hacks . | . . Scanalyzer . | . . Garrison Access Hacks . | . . Unauthorized Hacks 1 | . 1 Terminals . | . . Fabricators . | . . Repair Stations . | . . Recycling Units 1 | . 1 Tunnel 1 | . 1 Scanalyzers . | . . Garrison Access . | . . Data Cores Recovered . | . . Used . | . . Hacking Detections 1 | . 1 Full Trace Events 1 | . 1 Feedback Events . | . . Feedback Blocked . | . . Robot Schematics Acquired . | . . Robots Built . | . . Matter . | . . Time . | . . Total Robot Build Rating . | . . Part Schematics Acquired . | . . Parts Built . | . . Matter . | . . Time . | . . Total Part Build Rating . | . . Parts Repaired . | . . Time . | . . Parts Recycled . | . . Recycled Matter . | . . Retrieved Matter . | . . Retrieved Components . | . . Parts Scanalyzed . | . . Part Schematics Acquired . | . . Parts Damaged . | . . Bothacking | -11 -10 ------------ Run | Scr Mat Used RIF Installer . | . . Robots Hacked . | . . Non-combat . | . . Combat . | . . Robot Hacks Applied . | . . Relay Couplers Released . | . . Robots Rewired . | . . Allies Hacked . | . . Hacks Repelled . | . . Allies | -11 -10 -------- Run | Scr Mat Total Allies . | . . Largest Group . | . . Highest-Rated Group . | . . Highest-Rated Ally . | . . Total Orders . | . . Ally Attacks . | . . Total Damage . | . . Kills . | . . Allies Corrupted . | . . Allies Melted . | . . Intel | -11 -10 ------- Run | Scr Mat Robot Analysis Total . | . . Derelict Logs Recovered . | . . Drone Launches . | . . Drone Recoveries . | . . Exploration | -11 -10 ------------- Run | Scr Mat Turns Passed 305 | 40 265 Spaces Moved 170 | 38 132 Core 7 | 2 5 Treads . | . . Legs 27 | . 27 Wheels 136 | 36 100 Hover . | . . Flight . | . . Fastest Speed 50 | 50 50 Average Speed 94 | 87 96 Slowest Speed 150 | 90 150 Overloaded Moves . | . . Propulsion Burnouts . | . . Robots Hopped . | . . Cave-ins Triggered . | . . Exploration Rate (%) 17 | 3 32 Regions Visited 1 Branch Regions . Pre-discovered Areas 1 | . 1 Known Exits Taken . | . . Unknown Exits Taken 1 | 1 . Scrap Searched . | . . Spaces Dug . | . . Terrain Destroyed . | . . Melee . | . . Projectile . | . . AOE . | . . Terrain Rammed . | . . Walls Destroyed . | . . Machines Disabled . | . . Actions | -11 -10 --------- Run | Scr Mat Total 261 | 42 219 Wait 22 | . 22 Move 169 | 37 132 Hop . | . . Pick Up 6 | . 6 Fast Attach 11 | 5 6 Attach . | . . Detach . | . . Swap 1 | . 1 Drop 3 | . 3 Fire 31 | . 31 Melee . | . . Ram 9 | . 9 Kick 9 | . 9 Crush . | . . Escape Stasis . | . . Rewire . | . . Trap . | . . Miscellaneous . | . . Route ------- -11/Scrapyard -10/Materials (discovered 1 exit: Min) History --------- Turn | Location | Event 25 | -11/Scrapyard | Discovered new exit (range 14) 41 | -11/Scrapyard | Entered Materials 69 | -10/Materials | Identified exit to Mines 248 | -10/Materials | Lost 6 parts (1p2n1u2w) 267 | -10/Materials | Core integrity fell below 50% 298 | -10/Materials | Core integrity fell below 20% 306 | -10/Materials | Core destroyed Last Messages --------------- 00292_ G-34 Mercenary IFF system glitched. 00293_ Slammed into G-34 Mercenary. 00293_ Aluminum Leg permanently disabled. 00293_ Destabilizing: Short circuit. 00294_ G-34 Mercenary IFF system glitched. 00295_ Dropped Med. Storage Unit. 00296_ Slammed into G-34 Mercenary. 00296_ Broken Aluminum Leg destroyed. 00296_ System corrupted by crushing effect (+2). 00296_ System corrupted by crushing effect (+4). 00296_ Destabilizing: System corrupted (+1). 00296_ G-34 Mercenary IFF system glitched. 00297_ Slammed into G-34 Mercenary. 00297_ Ion Engine fried. 00297_ G-34 Mercenary destroyed. 00298_ Acquired 18 matter. 00299_ Slammed into G-47 Trooper. 00304_ R-06 Scavenger collects Hpw. Tractor Beam. 00305_ Slammed into G-47 Trooper. 00306_ Destabilizing: Core damaged (-7). Map ----- +----------------------------------------------------+ | ?????????# ????# #?????# | | ?????????# #######/########### | | ?????????+ """"" """""?? | | ?????????# * ! ! """"" """""?? | | ?????????# =% """"" """"??? | | ?????????######+#### """ """ ?????? | | ????????????? ????# """ """ ?????? | | ??????????? ??????# """ """ """"" "?????? | | ??????????# ???????# """"" "?????? | | ??????????????????## """"" ?"?????? | | ??????????????????# ###### ?????????? | | ??????????????????# #????# ??????????? | | ??????????????????# #????# """"?????????? | | ??????????????????# #????# """"?????????? | | ??????????????????# #????# """"" ???????? | | ??????????????????###+######## ????????? | | ???????????????????# # ?????????? | | ????????????????#+?# # ???????? | | ????????????????# ## + ???????? | | ????????????????# ## "" """ # ???????? | | ????????????????# ## "Y """ # ???????? | | ????????????????# +="" "" # #### ###???????? | | ????????????????# # # #??????????????? | | ???????????????## #####+##### #??????????????? | | ??????????###+## g %= #??????????????? | | ??????????# @ ! #??????????????? | | ??????????# t %%r !] #??????????????? | | ??????????# ##### %%%######??????????????? | | ??????????+ ????# % #???????????????????? | | ??????????# ?????#!! !#???????????????????? | | ??????????# ?????#!!] #???????????????????? | | ??????????# ??????########???????????????????? | | ????????? ?????????????????????????????????? | | ????????] ??????????????????????????????????? | | ???????]] ??????????????????????????????????? | | ??????#]] ???????????????????????????????????? | | ??????#!! ???????????????????????????????????? | | ??????#!! ????????????????????????????????????? | | ????????### ????????????????????????????????????? | | ??????????#?????????????????????????????????????? | | ????????????????????????????????????????????????? | | ????????????????????????????????????????????????? | | ????????????????????????????????????????????????? | | ????????????????????????????????????????????????? | | ????????????????????????????????????????????????? | | ????????????????????????????????????????????????? | | ????????????????????????????????????????????????? | | ????????????????????????????????????????????????? | | ????????????????????????????????????????????????? | | ????????????????????????????????????????????????? | +----------------------------------------------------+ Best States ------------- Heat Dissipation 25 Energy Generation 10 Energy Capacity 125 Matter Stores 300 Matter Capacity 300 Sight Range 16 Terrain Scan Density 10 Evasion (%) 42 Item Schematics ----------------- None Robot Schematics ------------------ None Fabricated ------------ Nothing Alien Tech Used ----------------- None Achievements -------------- None Challenges ------------ None Game ------ Seed LaserBladeBlaster Manual? 0 Play Time 00:05:23 Cumulative 238.2 hours Start 2021.05.14 @ 12:58:52 End 2021.05.14 @ 15:50:46 Sessions 3 Manual Loads 0 Difficulty Rogue Special Mode None Game No. 97 Rogue 97 Adventurer 0 Explorer 0 Win Type - Total 6 Types 5/0/1/0/0/0/0/0/0 Lore% 68 Gallery% 81 Achievement% 60 Wizard Run 0 Options --------- ASCII 0 Keyboard 0 Movement Mouse Keybinds 0 Fullscreen 2 Font 12/Smallcaps Map View 83x54 Tactical HUD 1 Map Filters NONE Filters NONE Steam X RUN: 98101c42-a8c0-4132-b2d5-89950fbb943a